Cogmind - Beta 12 @@@ ROGUE MODE // 2023.06.01 @ 18:33:16 Player: Shadow Pussy wanter Result: Destroyed by B-86 Titan with Railgun Performance ------------- Evolutions (6) 3000 Regions Visited (23) 4600 Robots Destroyed (251) 1255 Value Destroyed (9275) 9275 Prototype IDs (35) 700 Alien Tech Used (1) 200 Bonus (4200) 4200 TOTAL SCORE: 23230 Bonus ------- High Alert Combat Kills 606 Follower Combat Kills 2833 Met Data Miner 300 Met Zhirov 300 Built Enhanced Grunts 300 A7 Reached Mainframe 300 Met R17 at Cetus 500 Friendly Fire -939 Cogmind --------- Core Integrity 0/1150 Matter 288/300 Energy 99/100 System Corruption 24% Temperature Cool (9) Movement Core (50) Location -3/Proximity Caves Parts ------- > --- POWER (1) -------- (None) > --- PROPULSION (6) --- (None) > --- UTILITY (9) ------ Experimental Weapon Shielding (fused) Hacking Suite Advanced Hacking Suite > --- WEAPON (3) ------- (None) > --- INVENTORY (5) ---- Improved Shield Generator Transdimensional Reconstructor Wave Gun Variable Charge Gun Neutron Cannon Peak State ------------ > --- POWER ------------ Antimatter Reactor > --- PROPULSION ------- Medium Treads Armored Medium Treads Centrium Heavy Treads Centrium Heavy Treads > --- UTILITY ---------- Huge Storage Unit Advanced Terrain Scanner Advanced Terrain Scan Processor Improved Targeting Computer Improved Transmission Jammer Phase Shifter Centrium Medium Armor Plating Centrium Medium Armor Plating Force Field > --- WEAPON ----------- Advanced Variable Charge Gun KE Penetrator KE Penetrator > --- INVENTORY -------- Reinforced Deuterium Engine Light Angular Momentum Engine Neutrino Core Improved Treads Improved Treads Medium Treads Advanced Heat Sink Advanced Heat Sink High-capacity Matter Pod Advanced Sensor Array Phase Shifter Phase Shifter Thermal Shield Improved System Shield Improved System Restoration Module Hacking Drone Bay Wave Gun Wave Gun Variable Charge Gun Variable Charge Gun Cooled Plasma Rifle Neutron Cannon Autogun Advanced KE Penetrator Scatter Rocket Array [Rating: 131] Favorites ----------- Power Light Angular Momentum Engine Engine Light Angular Momentum Engine Power Core Nuclear Core Reactor Antimatter Reactor Propulsion Light Treads Treads Light Treads Leg Aluminum Leg Utility Huge Storage Unit Device Advanced Heat Sink Storage Huge Storage Unit Processor Advanced Signal Interpreter Hackware Hacking Suite Protection Improved Heavy Armor Plating Weapon Advanced Assault Cannon Energy Gun Heavy Particle Gun Energy Cannon Advanced Plasma Cannon Ballistic Gun Autogun Ballistic Cannon Advanced Assault Cannon Launcher Precision Grenade Launcher Slashing Weapon Makeshift Sword Build | -11 -10 -9 -8 -7 -7 -7 -7 -6 -6 -6 -6 -6 -5 -5 -5 -5 -5 -5 -4 -4 -4 -4 -3 ------- Run | Jun Mat Mat Mat Fac Low Low Dat Pro Fac Low Low Zio Pro Fac Ext Cet Arc Hub Fac Upp Upp Zhi Pro Slots Evolved 12 | . . 2 2 2 . . . . 2 . . . . 2 . . . . 2 . . . . Power . | . . . . . . . . . . . . . . . . . . . . . . . . Propulsion 4 | . . 2 . . . . . . . . . . . 2 . . . . . . . . . Utility 7 | . . . 2 1 . . . . 2 . . . . . . . . . 2 . . . . Weapon 1 | . . . . 1 . . . . . . . . . . . . . . . . . . . Parts Attached 234 | 7 5 19 26 9 10 5 3 12 15 2 21 7 5 11 14 2 3 14 18 7 10 6 3 Power 17 | 1 1 1 2 . . 1 . 1 . . 2 . 1 1 2 . . . 2 . 2 . . Engine 12 | 1 1 1 2 . . . . . . . 2 . 1 1 2 . . . . . 1 . . Core 4 | . . . . . . 1 . 1 . . . . . . . . . . 1 . 1 . . Reactor 1 | . . . . . . . . . . . . . . . . . . . 1 . . . . Propulsion 56 | 2 . 9 11 3 1 . . 3 5 . 3 1 . 2 5 1 2 2 2 1 2 . 1 Treads 54 | . . 9 11 3 1 . . 3 5 . 3 1 . 2 5 1 2 2 2 1 2 . 1 Leg 2 | 2 . . . . . . . . . . . . . . . . . . . . . . . Wheel . | . . . . . . . . . . . . . . . . . . . . . . . . Hover . | . . . . . . . . . . . . . . . . . . . . . . . . Flight . | . . . . . . . . . . . . . . . . . . . . . . . . Utility 106 | 2 2 4 9 5 9 1 . 5 8 2 13 . 3 4 4 1 1 6 13 5 2 5 2 Device 57 | 1 . . 2 1 5 1 . 3 4 1 10 . 3 4 2 . 1 3 10 4 1 . 1 Storage 9 | 1 2 1 . 1 . . . . . . . . . . . . . . . . 1 2 1 Processor 9 | . . . 2 . . . . . 2 1 1 . . . 1 . . . 2 . . . . Hackware 4 | . . . . 2 . . . . . . . . . . . . . . . . . 2 . Protection 27 | . . 3 5 1 4 . . 2 2 . 2 . . . 1 1 . 3 1 1 . 1 . Artifact . | . . . . . . . . . . . . . . . . . . . . . . . . Weapon 55 | 2 2 5 4 1 . 3 3 3 2 . 3 6 1 4 3 . . 6 1 1 4 1 . Energy Gun 13 | 1 . . 1 . . . . 1 . . 2 3 1 . . . . 2 . . 1 1 . Energy Cannon 2 | . . . . . . . . . . . . . . . 1 . . 1 . . . . . Ballistic Gun 20 | 1 2 5 1 . . . . . . . . . . 2 2 . . 3 1 1 2 . . Ballistic Cannon 15 | . . . 2 1 . 3 3 1 2 . . 1 . 2 . . . . . . . . . Launcher 4 | . . . . . . . . . . . 1 2 . . . . . . . . 1 . . Special Weapon . | . . . . . . . . . . . . . . . . . . . . . . . . Impact Weapon . | . . . . . . . . . . . . . . . . . . . . . . . . Slashing Weapon 1 | . . . . . . . . 1 . . . . . . . . . . . . . . . Piercing Weapon . | . . . . . . . . . . . . . . . . . . . . . . . . Special Melee Weapon . | . . . . . . . . . . . . . . . . . . . . . . . . Unidentified Prototypes 14 | . . 1 2 . . . . . . . . 1 . 1 . 1 . 3 1 . 1 3 . Corrupted Parts 6 | . . . . . . . . 1 . . . . . . 1 . . 4 . . . . . System Corruption 38 | . . . . . . . . 7 . . . . . . 10 . . 21 . . . . . Parts Lost 66 | . . . 6 1 2 4 . 6 1 . 5 . 2 1 6 3 . 5 . 2 21 . 1 Power 8 | . . . 1 . . 1 . 1 . . 1 . 1 . 1 . . . . . 2 . . Propulsion 22 | . . . 3 1 . . . 2 . . 2 . . 1 2 2 . 1 . 1 6 . 1 Utility 25 | . . . 2 . 2 1 . 2 1 . 2 . . . 1 1 . 4 . 1 8 . . Weapon 11 | . . . . . . 2 . 1 . . . . 1 . 2 . . . . . 5 . . Highest Loss Streak 21 | . . . 5 1 2 4 . 4 1 . 4 . 1 1 3 2 . 5 . 1 21 . 1 To Critical Strikes 3 | . . . 2 . . . . . . . . . . . 1 . . . . . . . . Average Slot Usage (%) 92 | . 100 99 98 98 99 98 77 99 92 93 91 91 92 86 87 83 79 80 89 88 79 10 17 Engine 5 | . 14 11 9 7 7 1 . . . . 3 6 5 5 5 5 5 5 1 . . . . Core 1 | . . . . . . 5 7 6 6 6 2 . . . . . . . 1 . . . . Treads 26 | . . 43 35 29 30 30 30 29 25 26 25 26 26 27 28 24 20 22 21 20 18 . 1 Leg 1 | . 28 . . . . . . . . . . . . . . . . . . . . . . Device 10 | . 14 . 1 5 6 11 15 18 12 6 9 13 12 11 11 11 11 10 20 21 18 . . Storage 7 | . 14 11 9 9 9 7 7 7 6 6 6 6 6 5 5 5 5 5 5 5 4 . . Processor 8 | . . . 8 7 6 . . . 11 19 16 13 13 11 11 11 11 10 10 10 9 . . Protection 7 | . . 10 15 5 6 15 15 11 7 6 5 6 6 5 5 5 5 5 10 9 8 . 5 Energy Gun 3 | . . . . . . . . . 6 6 7 12 6 . . . . . 5 5 4 2 . Ballistic Gun 6 | . 27 22 12 . . . . . . . . . . 5 7 11 11 11 10 9 9 . . Ballistic Cannon 8 | . . . 4 22 23 23 1 21 12 13 9 5 6 11 6 . . . . . . . . Naked Turns 60 | . . . . . . . . . . . . . . . . . . . . . 12 48 . Heaviest Build 135 | 15 92 96 112 117 119 118 116 117 126 126 133 128 131 132 131 130 130 131 135 135 135 5 5 Greatest Support 215 | 20 20 83 83 82 82 82 82 82 90 90 100 100 100 180 180 207 205 215 215 215 211 3 3 Greatest Overweight (x) 29 | 1 4 1 2 1 1 1 1 1 1 1 1 1 1 1 . . . . . . 29 1 1 Average Overweight (x) . | . 1 1 1 1 1 1 1 1 1 1 1 1 1 . . . . . . . . . . Largest Inventory Capacity 35 | 8 25 25 25 25 25 25 25 25 25 25 25 25 25 25 25 25 25 25 25 25 25 5 35 Average Capacity 24 | 7 19 25 25 25 25 25 25 25 25 25 25 25 25 25 25 25 25 25 25 25 24 5 5 Most Carried 25 | 7 20 25 25 25 25 25 22 24 25 25 25 25 25 25 25 25 25 25 25 25 25 5 5 Average Carried 23 | 4 15 23 23 24 24 22 22 23 24 25 24 24 24 24 24 24 25 24 21 24 23 4 4 Final Capacity 25 | 8 25 25 25 25 25 25 25 25 25 25 25 25 25 25 25 25 25 25 25 25 5 5 5 Final Carried 25 | 7 20 25 25 25 25 22 22 22 25 25 25 25 25 25 25 25 25 20 25 25 5 5 5 Class Distribution -------------------- 30% | Scavenger-Mutant 23% | Mutant 14% | Tank 14% | Scavenger-Tank 4% | Scavenger-Skirmisher 3% | Scavenger-Gunner Dominant Class ---------------- Mutant | -10/Materials Mutant | -9/Materials Scavenger-Mutant | -8/Materials Scavenger-Gunner | -7/Factory Tank | -7/Lower Caves Tank | -7/Lower Caves Mutant | -7/Data Miner Tank | -6/Proximity Caves Scavenger-Mutant | -6/Factory Scavenger-Skirmisher | -6/Lower Caves Mutant | -6/Lower Caves Scavenger-Mutant | -6/Zion Scavenger-Mutant | -5/Proximity Caves Tank | -5/Factory Scavenger-Tank | -5/Extension Scavenger-Tank | -5/Cetus Scavenger-Tank | -5/Archives Scavenger-Tank | -5/Hub_04(d) Scavenger-Tank | -4/Factory Scavenger-Tank | -4/Upper Caves Scavenger-Tank | -4/Upper Caves Hacker-Mutant | -4/Zhirov Hacker-Mutant | -3/Proximity Caves Resources | -11 -10 -9 -8 -7 -7 -7 -7 -6 -6 -6 -6 -6 -5 -5 -5 -5 -5 -5 -4 -4 -4 -4 -3 ----------- Run | Jun Mat Mat Mat Fac Low Low Dat Pro Fac Low Low Zio Pro Fac Ext Cet Arc Hub Fac Upp Upp Zhi Pro Matter Collected 8098 | 264 270 1017 1031 451 371 370 . 454 342 49 516 63 139 598 634 219 77 240 571 175 71 147 29 Remotely . | . . . . . . . . . . . . . . . . . . . . . . . . Salvage Created 9762 | 27 284 1231 1569 292 94 261 . 196 399 . 594 . 181 695 650 284 35 650 971 313 680 356 . Parts 463 | 6 39 73 65 18 2 8 . 12 16 . 16 . 10 37 17 10 3 24 60 20 24 3 . Haulers Intercepted 4 | . 1 1 2 . . . . . . . . . . . . . . . . . . . . Recyclers Shooed 6 | 1 . 2 . 1 . . . . . . . . . . . . . . 2 . . . . Parts Field Recycled . | . . . . . . . . . . . . . . . . . . . . . . . . Retrieved Matter . | . . . . . . . . . . . . . . . . . . . . . . . . Parts Self-Destructed 107 | . . . . . 2 12 . 28 . . 15 . 7 . . . . . . 19 21 3 . Prevented . | . . . . . . . . . . . . . . . . . . . . . . . . Kills | -11 -10 -9 -8 -7 -7 -7 -7 -6 -6 -6 -6 -6 -5 -5 -5 -5 -5 -5 -4 -4 -4 -4 -3 ------- Run | Jun Mat Mat Mat Fac Low Low Dat Pro Fac Low Low Zio Pro Fac Ext Cet Arc Hub Fac Upp Upp Zhi Pro Combat Hostiles Destroyed 192 | . 11 21 30 9 4 9 . 6 7 . 18 . 10 13 5 4 . 7 17 7 14 . . Guns 112 | . 11 21 25 . . . . 1 4 . 3 . . 5 2 3 . 6 17 7 7 . . Cannons 53 | . . . 5 9 4 9 . 5 3 . 6 . . 8 2 1 . 1 . . . . . AOE 25 | . . . . . . . . . . . 8 . 10 . . . . . . . 7 . . Classes Destroyed 16 | 1 5 5 2 1 . . . 2 . . . . . . . . . . . . . . . Worker 23 | . 1 2 4 6 . . . . . . . . . 1 . . . 6 3 . . . . Builder 8 | . . 1 . 2 . . . . . . . . . 1 2 . . . 2 . . . . Tunneler 3 | 2 1 . . . . . . . . . . . . . . . . . . . . . . Hauler 4 | . 1 1 2 . . . . . . . . . . . . . . . . . . . . Recycler 10 | . . 2 3 1 . . . . 1 . . . . . 3 . . . . . . . . Operator 4 | . . 1 2 . . . . . . . . . . . . . 1 . . . . . . Watcher 6 | . 1 2 1 . . . . . 1 . . . . . . 1 . . . . . . . Swarmer 54 | . 9 7 7 . . 3 . 1 3 . 4 . 6 . . . . . 7 3 4 . . Grunt 67 | . 2 7 14 5 3 1 . . 3 . 6 . 3 7 3 2 . 2 6 . 3 . . Brawler 14 | . . 1 2 . 1 3 . . . . 3 . . . . . . 2 . . 2 . . Duelist 7 | . . . 2 . . 1 . . . . 1 . 1 . . . . 1 . . 1 . . Sentry 19 | . . 6 4 1 . 1 . . . . 1 . . . . . . . 4 . 2 . . Specialist 3 | . . . . . . . . 2 . . . . . . . . . 1 . . . . . Hunter 13 | . . . 1 1 . . . 2 . . 2 . . 2 . . . 1 . 2 2 . . Programmer 11 | . . . . 2 . . . . 1 . 1 . . 4 . 1 . . . 2 . . . Behemoth 3 | . . . . . . . . 1 . . . . . . 2 . . . . . . . . Cetus Guard 1 | . . . . . . . . . . . . . . . . 1 . . . . . . . Enhanced Grunt 1 | . . . . . . . . . . . . . . . . . . 1 . . . . . Best Kill Streak 12 | 1 3 8 12 4 3 9 . 1 4 . 8 . 5 3 4 3 1 6 9 3 7 . . Combat Bots Only 9 | . 3 7 7 3 3 9 . 1 3 . 8 . 5 3 1 3 . 3 7 3 7 . . Max Kills in Single Turn 4 | 1 2 2 2 1 1 1 . 1 1 . 3 . 4 2 1 1 1 1 2 1 4 . . Gunslinging 1 | . . . . . . . . . . . . . . . . . . . 1 . . . . Exploded 4 | . . . . . . . . . . . 3 . 4 . . . . . . . 4 . . Melee . | . . . . . . . . . . . . . . . . . . . . . . . . Uniques/NPCs Destroyed . | . . . . . . . . . . . . . . . . . . . . . . . . Combat | -11 -10 -9 -8 -7 -7 -7 -7 -6 -6 -6 -6 -6 -5 -5 -5 -5 -5 -5 -4 -4 -4 -4 -3 -------- Run | Jun Mat Mat Mat Fac Low Low Dat Pro Fac Low Low Zio Pro Fac Ext Cet Arc Hub Fac Upp Upp Zhi Pro Damage Taken 18711 | . 208 1001 1764 515 338 870 . 833 315 . 1751 . 384 769 1491 561 . 2120 986 622 3562 . 621 Core 1994 | . 47 96 226 32 48 48 . 16 . . 106 . 34 25 78 27 . 35 61 52 528 . 535 Absorbed by Shields 1214 | . . . . . 72 . . . . . 90 . 47 301 125 154 . . 245 108 72 . . Reduced by Siege Mode 424 | . . . . . . . . . . . . . . . 23 22 . 122 . . 257 . . Regen/Repaired (Parts) 687 | . . . . 217 . . . . 470 . . . . . . . . . . . . . . Core Remaining (%) 80 | 100 81 76 58 . . . . 79 . . . . 83 . . . . 83 . . . . . Volleys Fired 572 | 7 35 74 95 32 11 18 . 15 27 . 41 . 8 31 36 18 6 19 41 14 26 18 . Largest 3 | 2 2 2 2 3 3 3 . 3 3 . 3 . 1 3 3 3 3 3 3 3 3 1 . Hottest 306 | 70 70 46 96 140 140 140 . 151 151 . 183 . 36 131 179 159 159 156 306 146 143 75 . Shots Fired 1301 | 14 70 148 195 76 33 47 . 40 50 . 72 . 8 92 97 51 19 56 111 39 68 15 . Gun 823 | 14 70 148 146 . . . . 2 21 . 37 . . 31 41 33 13 37 111 39 65 15 . Cannon 456 | . . . 49 76 33 47 . 38 29 . 24 . . 61 56 18 6 19 . . . . . Launcher 22 | . . . . . . . . . . . 11 . 8 . . . . . . . 3 . . Special . | . . . . . . . . . . . . . . . . . . . . . . . . Kinetic 1071 | 7 64 148 195 76 33 47 . 38 29 . 24 . . 92 75 33 13 37 82 29 49 . . Thermal 208 | 7 6 . . . . . . 2 21 . 37 . . . 22 18 6 19 29 10 16 15 . Explosive 22 | . . . . . . . . . . . 11 . 8 . . . . . . . 3 . . Electromagnetic . | . . . . . . . . . . . . . . . . . . . . . . . . Robot Hit Streak 37 | 4 10 26 14 16 7 7 . 10 9 . 11 . 5 9 21 21 22 19 34 11 37 13 . Robot Miss Streak 6 | 1 3 3 6 5 5 5 . 6 2 . 3 . 1 2 5 3 2 3 4 3 4 1 . Penetration Max 1 | . . . 1 . . . . . . . . . . 1 1 1 1 1 1 . . . . Secondary Targets 6 | . . . 1 . . . . . . . 1 . . . . . . . 2 1 1 . . Max Gunslinging Chain 1 | . . . 1 . . . . . . . 1 . . . . . . . 1 1 1 . . Shots Hit Robots 916 | 10 37 101 138 63 25 34 . 33 29 . 47 . 4 54 74 37 14 36 83 26 57 14 . Core Hits 532 | 3 18 45 67 50 12 34 . 22 14 . 45 . 19 29 19 16 7 30 41 13 43 5 . Critical Kills 8 | . . . . . . . . . . . . . . 1 2 1 . 1 3 . . . . Critical Parts Destroyed 9 | . . 1 2 . . . . . . . . . . 1 . . 1 . 3 1 . . . Critical Strikes 40 | . 1 1 8 . 2 1 . 1 . . 4 . . 6 4 2 1 1 6 1 1 . . Burn 3 | . 1 . . . . . . . . . 2 . . . . . . . . . . . . Meltdown 2 | . . . . . . . . . . . . . . . 2 . . . . . . . . Destroy 18 | . . 1 3 . . . . . . . . . . 2 . 2 1 1 6 1 1 . . Blast 17 | . . . 5 . 2 1 . 1 . . 2 . . 4 2 . . . . . . . . Melee Attacks 1 | . . . . . . . . 1 . . . . . . . . . . . . . . . Impact . | . . . . . . . . . . . . . . . . . . . . . . . . Slashing 1 | . . . . . . . . 1 . . . . . . . . . . . . . . . Piercing . | . . . . . . . . . . . . . . . . . . . . . . . . Sneak Attacks . | . . . . . . . . . . . . . . . . . . . . . . . . Combat Hostiles . | . . . . . . . . . . . . . . . . . . . . . . . . Follow-up Attacks . | . . . . . . . . . . . . . . . . . . . . . . . . Damage Inflicted 25039 | 122 572 1558 3099 1408 566 863 . 855 671 . 2118 . 1102 1478 2224 1073 451 1526 2332 606 2148 267 . Guns 12857 | 122 554 1558 2052 . . . . 40 314 . 676 . . 569 703 628 282 913 2231 583 1365 267 . Cannons 8714 | . . . 991 1352 566 863 . 815 357 . 368 . . 909 1453 445 169 426 . . . . . Explosions 3113 | . . . . . . . . . . . 1074 . 1102 . . . . 154 . . 783 . . Melee . | . . . . . . . . . . . . . . . . . . . . . . . . Ramming 355 | . 18 . 56 56 . . . . . . . . . . 68 . . 33 101 23 . . . Kinetic 17264 | 74 517 1558 3043 1352 566 863 . 815 357 . 368 . . 1478 1522 628 282 913 1661 368 899 . . Thermal 4461 | 48 37 . . . . . . 40 314 . 676 . . . 634 445 169 580 570 215 466 267 . Explosive 2959 | . . . . . . . . . . . 1074 . 1102 . . . . . . . 783 . . Electromagnetic . | . . . . . . . . . . . . . . . . . . . . . . . . Impact . | . . . . . . . . . . . . . . . . . . . . . . . . Slashing . | . . . . . . . . . . . . . . . . . . . . . . . . Piercing . | . . . . . . . . . . . . . . . . . . . . . . . . Highest Corruption 45 | . . . 11 . 5 8 8 15 2 2 2 2 . 4 17 20 20 45 . 3 24 24 24 Average Corruption 8 | . . . 10 . 5 7 8 8 1 2 2 2 . 3 11 18 20 20 . 2 4 24 24 Corruption Purged . | . . . . . . . . . . . . . . . . . . . . . . . . Corruption Blocked . | . . . . . . . . . . . . . . . . . . . . . . . . Effects 357 | . . . 57 . 3 19 9 43 8 11 20 1 . 9 68 30 10 30 . 4 16 10 9 Message Errors 78 | . . . 12 . . 5 5 11 . 2 4 . . . 10 6 6 6 . . 6 2 3 Matter Fused 85 | . . . 11 . 2 2 2 10 4 5 7 1 . . 24 6 1 6 . 1 2 1 . Heat Flow Errors 44 | . . . 7 . . 2 1 7 1 2 5 . . 2 6 2 . 2 . . 3 3 1 Energy Discharges 33 | . . . 5 . . 3 . 3 . 1 2 . . 1 8 3 1 3 . . . 1 2 Parts Rejected 4 | . . . . . . 1 . . . . . . . . . . . 1 . 1 1 . . Parts Fused 1 | . . . . . . . . . . . . . . . . . . . . . . . 1 Data Loss (minor) 47 | . . . 11 . 1 2 1 5 2 1 1 . . 4 8 2 . 7 . 1 1 . . Data Loss (major) 13 | . . . 4 . . 1 . 2 . . 1 . . . . 3 . 1 . . 1 . . Misfires 21 | . . . 5 . . 2 . 4 . . . . . 1 4 1 1 2 . 1 . . . Alerts 10 | . . . 2 . . . . . . . . . . 1 2 3 1 1 . . . . . Misdirections 4 | . . . . . . . . . . . . . . . . . . . . . 2 . 2 Weapon Failures 17 | . . . . . . 1 . 1 1 . . . . . 6 4 . 1 . . . 3 . Overload Shots 4 | . . . . . . . . . . . . . . . . . . . 2 . 2 . . Overflow Damage 242 | . . . 56 7 . . . . . . 41 . 64 1 39 11 . 5 9 5 4 . . Projectiles 149 | . . . 56 7 . . . . . . 30 . . 1 39 11 . 5 . . . . . Explosions 79 | . . . . . . . . . . . 11 . 64 . . . . . . . 4 . . Melee 14 | . . . . . . . . . . . . . . . . . . . 9 5 . . . Knockbacks 89 | . . . 10 39 2 7 . 7 2 . 5 . . 12 4 . . . 1 . . . . Impact 4 | . . . 2 1 . . . . . . . . . . . . . . 1 . . . . Kinetic 78 | . . . 8 33 2 7 . 7 2 . 5 . . 10 4 . . . . . . . . Secondary 7 | . . . . 5 . . . . . . . . . 2 . . . . . . . . . Self-Inflicted Damage 421 | . . . . . . . . . 20 . 20 . 72 . . . . 53 . . 256 . . Shots 19 | . . . . . . . . . 2 . 2 . 2 . . . . 1 . . 12 . . Rammed 22 | . . 2 8 2 . . . . . . . . . . 2 . . 4 2 2 . . . Targets Rammed 31 | . 4 2 9 3 . . . . . . . . . . 3 . . 4 4 2 . . . Kicked 4 | . 4 . . . . . . . . . . . . . . . . . . . . . . Crushed 5 | . . . 1 1 . . . . . . . . . . 1 . . . 2 . . . . Highest Temperature 557 | 27 54 27 257 154 475 232 250 231 183 213 350 . . 197 264 174 81 557 184 . 343 247 168 Average Temperature 75 | 11 11 9 41 58 237 98 145 74 40 88 121 . . 47 71 44 30 154 60 . 122 104 103 Received Heat Transfer 3136 | . 24 282 684 129 137 99 . 108 63 . 455 . 84 119 210 50 . 256 157 . 270 . 9 Effects 23 | . . . . . 7 . . . . . 5 . . . . . . 8 . . 3 . . Shutdowns 2 | . . . . . 2 . . . . . . . . . . . . . . . . . . Energy Bleed 4 | . . . . . . . . . . . 2 . . . . . . 2 . . . . . Interference 13 | . . . . . 4 . . . . . 3 . . . . . . 3 . . 3 . . Damage (minor) 1 | . . . . . 1 . . . . . . . . . . . . . . . . . . Damage (major) 3 | . . . . . . . . . . . . . . . . . . 3 . . . . . Siege Activations 11 | . . . . . . . . . . . . . . . 3 2 2 3 . . 1 . . Total Turns 305 | . . . . . . . . . . . . . . . 82 36 2 115 . . 70 . . Longest Duration 70 | . . . . . . . . . . . . . . . 47 22 1 69 . . 70 . . Robots Corrupted . | . . . . . . . . . . . . . . . . . . . . . . . . Combat Hostiles . | . . . . . . . . . . . . . . . . . . . . . . . . Parts Fried . | . . . . . . . . . . . . . . . . . . . . . . . . Impact Corruptions 2 | . . . . . . . . . . . . . . . . . . . 1 1 . . . Robots Melted 3 | . . . . . . . . . . . 1 . . . 2 . . . . . . . . Combat Hostiles 2 | . . . . . . . . . . . 1 . . . 1 . . . . . . . . Parts Melted 9 | . 1 . . . . . . . . . 3 . . . 3 . . 1 . . 1 . . Heat Transferred 6742 | 148 185 . . . . . . 74 592 . 1565 . . . 900 650 250 226 827 259 604 462 . Parts Sabotaged 1 | . . . . . . . . . . . . . . . . . . . . . 1 . . Parts Stolen . | . . . . . . . . . . . . . . . . . . . . . . . . Parts Stripped . | . . . . . . . . . . . . . . . . . . . . . . . . Power Chain Reactions 1 | . . . . . . . . . . . . . . . . . . 1 . . . . . Missiles Intercepted . | . . . . . . . . . . . . . . . . . . . . . . . . Alert | -11 -10 -9 -8 -7 -7 -7 -7 -6 -6 -6 -6 -6 -5 -5 -5 -5 -5 -5 -4 -4 -4 -4 -3 ------- Run | Jun Mat Mat Mat Fac Low Low Dat Pro Fac Low Low Zio Pro Fac Ext Cet Arc Hub Fac Upp Upp Zhi Pro Peak Influence 1023 | 10 217 340 651 204 . . . . 182 . . . . 268 458 600 457 1023 827 . . . . Initial 496 | . 6 . 109 144 . . . . 18 . . . . 6 130 208 240 159 496 . . . . Average 211 | 4 60 209 346 117 . . . . 54 . . . . 89 183 391 405 443 593 . . . . Maximum Alert Level 3 | . 1 1 2 1 . . . . . . . . . 1 2 2 2 3 3 . . . . Low Security (%) 53 | 100 90 26 7 95 . . . . 100 . . . . 87 65 . . 25 . . . . . Level 1 31 | . 9 73 67 4 . . . . . . . . . 12 23 63 23 32 . . . . . Level 2 12 | . . . 25 . . . . . . . . . . . 11 36 76 19 86 . . . . Level 3 1 | . . . . . . . . . . . . . . . . . . 22 13 . . . . Level 4 . | . . . . . . . . . . . . . . . . . . . . . . . . Level 5 . | . . . . . . . . . . . . . . . . . . . . . . . . High Security . | . . . . . . . . . . . . . . . . . . . . . . . . Max Security . | . . . . . . . . . . . . . . . . . . . . . . . . Squads Dispatched 39 | . 1 2 8 4 . 1 . . 2 . 1 . . 5 . . . 10 4 . 1 . . Investigation 6 | . . 1 1 2 . . . . . . . . . . . . . . 2 . . . . Extermination 9 | . . . . 2 . . . . 2 . . . . 3 . . . 1 1 . . . . Reinforcement 15 | . 1 1 4 . . . . . . . . . . 2 . . . 6 1 . . . . Assault 5 | . . . . . . 1 . . . . 1 . . . . . . 2 . . 1 . . Garrison 4 | . . . 3 . . . . . . . . . . . . . . 1 . . . . . Intercept . | . . . . . . . . . . . . . . . . . . . . . . . . Searches Triggered . | . . . . . . . . . . . . . . . . . . . . . . . . Data Miner Redirects 2 | . . . . . . . . . . . . . . . . . . 1 1 . . . . Construction Impeded 3 | . . . 1 . . . . . . . . . . 1 . . . 1 . . . . . Haulers Reinforced 2 | . . . . . . . . . . . . . . 1 . . . 1 . . . . . Active Scanning Responses . | . . . . . . . . . . . . . . . . . . . . . . . . Cargo Convoy Interrupts . | . . . . . . . . . . . . . . . . . . . . . . . . Stealth | -11 -10 -9 -8 -7 -7 -7 -7 -6 -6 -6 -6 -6 -5 -5 -5 -5 -5 -5 -4 -4 -4 -4 -3 --------- Run | Jun Mat Mat Mat Fac Low Low Dat Pro Fac Low Low Zio Pro Fac Ext Cet Arc Hub Fac Upp Upp Zhi Pro Distress Signals 13 | . . 1 2 . . . . . 1 . . . . 1 3 2 . 2 1 . . . . Communications Jammed 1 | . . . . . . . . . . . . . . . . . . . 1 . . . . Distress Signals 1 | . . . . . . . . . . . . . . . . . . . 1 . . . . Times Spotted 343 | . 18 30 40 15 4 15 . 9 10 . 20 . 16 18 28 17 11 27 24 9 20 . 12 Peak Tracking Total 13 | . 3 7 5 4 3 13 . 3 4 . 10 . 6 5 6 5 1 7 9 5 11 . 8 Tactical Retreats 20 | . . 2 1 1 . 4 . . . . 3 . . . 3 1 . 1 1 1 . . 2 Traps | -11 -10 -9 -8 -7 -7 -7 -7 -6 -6 -6 -6 -6 -5 -5 -5 -5 -5 -5 -4 -4 -4 -4 -3 ------- Run | Jun Mat Mat Mat Fac Low Low Dat Pro Fac Low Low Zio Pro Fac Ext Cet Arc Hub Fac Upp Upp Zhi Pro Traps Triggered 10 | . . 1 1 . . . . . 2 . . . . 1 1 . . 3 1 . . . . Indirectly . | . . . . . . . . . . . . . . . . . . . . . . . . Trap Hack Attempts . | . . . . . . . . . . . . . . . . . . . . . . . . Triggered . | . . . . . . . . . . . . . . . . . . . . . . . . Disarmed . | . . . . . . . . . . . . . . . . . . . . . . . . Reprogrammed . | . . . . . . . . . . . . . . . . . . . . . . . . Reused . | . . . . . . . . . . . . . . . . . . . . . . . . Traps Extracted . | . . . . . . . . . . . . . . . . . . . . . . . . Installed . | . . . . . . . . . . . . . . . . . . . . . . . . Triggered 2 | . . . . . . . . . . . . . . . . . . . . 1 . . 1 Machines | -11 -10 -9 -8 -7 -7 -7 -7 -6 -6 -6 -6 -6 -5 -5 -5 -5 -5 -5 -4 -4 -4 -4 -3 ---------- Run | Jun Mat Mat Mat Fac Low Low Dat Pro Fac Low Low Zio Pro Fac Ext Cet Arc Hub Fac Upp Upp Zhi Pro Machines Disabled 20 | . 1 . 1 2 . . . 1 4 . 1 . . 4 1 1 1 3 . . . . . Max in Single Turn 2 | . 1 . 1 1 . . . 1 2 . 1 . . 2 . . . . . . . . . Garrison Access 2 | . . . 1 . . . . . . . . . . . . . . 1 . . . . . Machines Repaired . | . . . . . . . . . . . . . . . . . . . . . . . . Machines Sabotaged . | . . . . . . . . . . . . . . . . . . . . . . . . Overloaded Fab Kills . | . . . . . . . . . . . . . . . . . . . . . . . . Hacking | -11 -10 -9 -8 -7 -7 -7 -7 -6 -6 -6 -6 -6 -5 -5 -5 -5 -5 -5 -4 -4 -4 -4 -3 --------- Run | Jun Mat Mat Mat Fac Low Low Dat Pro Fac Low Low Zio Pro Fac Ext Cet Arc Hub Fac Upp Upp Zhi Pro Machines Accessed 40 | . 3 5 2 3 1 . 3 . 3 . 1 . . 3 3 2 . 5 1 . . 4 1 Terminals 26 | . 3 5 1 2 . . . . . . . . . 3 3 2 . 5 1 . . . 1 Fabricators . | . . . . . . . . . . . . . . . . . . . . . . . . Repair Stations 3 | . . . . 1 . . . . 2 . . . . . . . . . . . . . . Recycling Units . | . . . . . . . . . . . . . . . . . . . . . . . . Scanalyzers 1 | . . . . . . . . . 1 . . . . . . . . . . . . . . Garrison Access 1 | . . . 1 . . . . . . . . . . . . . . . . . . . . Total Hacks 129 | . 11 13 6 13 1 . 23 . 15 . 1 . . 7 5 3 . 13 3 . . 13 2 Successful 82 | . 4 6 2 9 1 . 23 . 12 . 1 . . 1 1 2 . 4 1 . . 13 2 Failed 47 | . 7 7 4 4 . . . . 3 . . . . 6 4 1 . 9 2 . . . . Catastrophic 7 | . 1 . . . . . . . . . . . . 1 . . . 3 2 . . . . Database Lockouts . | . . . . . . . . . . . . . . . . . . . . . . . . Manual 52 | . 11 10 3 8 . . . 1 . . . 2 . 5 3 1 . 5 3 . . . . Terminals 69 | . 11 13 3 9 . . . . . . . . . 7 5 3 . 13 3 . . . 2 Fabricators . | . . . . . . . . . . . . . . . . . . . . . . . . Repair Stations 15 | . . . . 4 . . . . 11 . . . . . . . . . . . . . . Recycling Units . | . . . . . . . . . . . . . . . . . . . . . . . . Scanalyzers 4 | . . . . . . . . . 4 . . . . . . . . . . . . . . Garrison Access 3 | . . . 3 . . . . . . . . . . . . . . . . . . . . Terminal Hacks 56 | . 1 3 . 4 1 . 23 . . . 1 . . 1 . 2 . 4 1 . . 13 2 Record 15 | . . . . . . . 6 . . . . . . . . 1 . 1 . . . 5 2 Part Schematic 11 | . 1 . . 1 . . 9 . . . . . . . . . . . . . . . . Robot Schematic 5 | . . . . . . . 5 . . . . . . . . . . . . . . . . Robot Analysis 4 | . . . . . . . . . . . . . . . . . . . . . . 4 . Prototype ID Bank 8 | . . 1 . . . . 3 . . . . . . . . . . . . . . 4 . Open Door 3 | . . . . . 1 . . . . . 1 . . . . 1 . . . . . . . Branch Access Points 3 | . . . . 1 . . . . . . . . . . . . . 1 1 . . . . Terminal Index 3 | . . 1 . 1 . . . . . . . . . 1 . . . . . . . . . Alert Level 2 | . . . . 1 . . . . . . . . . . . . . 1 . . . . . Locate Traps 1 | . . 1 . . . . . . . . . . . . . . . . . . . . . Zone Layout 1 | . . . . . . . . . . . . . . . . . . 1 . . . . . Fabricator Hacks . | . . . . . . . . . . . . . . . . . . . . . . . . Repair Station Hacks 13 | . . . . 4 . . . . 9 . . . . . . . . . . . . . . Scan Component 7 | . . . . 2 . . . . 5 . . . . . . . . . . . . . . Repair 6 | . . . . 2 . . . . 4 . . . . . . . . . . . . . . Recycling Unit Hacks . | . . . . . . . . . . . . . . . . . . . . . . . . Scanalyzer 3 | . . . . . . . . . 3 . . . . . . . . . . . . . . Insert Component 2 | . . . . . . . . . 2 . . . . . . . . . . . . . . Analyze 1 | . . . . . . . . . 1 . . . . . . . . . . . . . . Garrison Access Hacks 1 | . . . 1 . . . . . . . . . . . . . . . . . . . . Seal Access 1 | . . . 1 . . . . . . . . . . . . . . . . . . . . Unauthorized Hacks 9 | . 3 3 1 1 . . . . . . . . . . 1 . . . . . . . . Terminals 9 | . 3 3 1 1 . . . . . . . . . . 1 . . . . . . . . Botnet 7 | . 2 2 1 1 . . . . . . . . . . 1 . . . . . . . . Operators 2 | . 1 1 . . . . . . . . . . . . . . . . . . . . . Fabricators . | . . . . . . . . . . . . . . . . . . . . . . . . Repair Stations . | . . . . . . . . . . . . . . . . . . . . . . . . Recycling Units . | . . . . . . . . . . . . . . . . . . . . . . . . Scanalyzers . | . . . . . . . . . . . . . . . . . . . . . . . . Garrison Access . | . . . . . . . . . . . . . . . . . . . . . . . . Data Cores Recovered . | . . . . . . . . . . . . . . . . . . . . . . . . Used . | . . . . . . . . . . . . . . . . . . . . . . . . Hacking Detections 26 | . 2 5 2 3 . . . . 2 . . . . 3 2 . . 5 1 . . . 1 Full Trace Events 4 | . . 1 . 2 . . . . . . . . . . . . . . 1 . . . . Feedback Events . | . . . . . . . . . . . . . . . . . . . . . . . . Feedback Blocked . | . . . . . . . . . . . . . . . . . . . . . . . . Robot Schematics Acquired 5 | . . . . . . . 5 . . . . . . . . . . . . . . . . Robots Built . | . . . . . . . . . . . . . . . . . . . . . . . . Authchips . | . . . . . . . . . . . . . . . . . . . . . . . . Time . | . . . . . . . . . . . . . . . . . . . . . . . . Total Robot Build Rating . | . . . . . . . . . . . . . . . . . . . . . . . . Part Schematics Acquired 12 | . 1 . . 1 . . 9 . 1 . . . . . . . . . . . . . . Parts Built . | . . . . . . . . . . . . . . . . . . . . . . . . Authchips . | . . . . . . . . . . . . . . . . . . . . . . . . Time . | . . . . . . . . . . . . . . . . . . . . . . . . Total Part Build Rating . | . . . . . . . . . . . . . . . . . . . . . . . . Parts Repaired 6 | . . . . 2 . . . . 4 . . . . . . . . . . . . . . Time 132 | . . . . 26 . . . . 106 . . . . . . . . . . . . . . Parts Recycled . | . . . . . . . . . . . . . . . . . . . . . . . . Recycled Matter . | . . . . . . . . . . . . . . . . . . . . . . . . Retrieved Matter . | . . . . . . . . . . . . . . . . . . . . . . . . Retrieved Components . | . . . . . . . . . . . . . . . . . . . . . . . . Parts Scanalyzed 1 | . . . . . . . . . 1 . . . . . . . . . . . . . . Part Schematics Acquired 1 | . . . . . . . . . 1 . . . . . . . . . . . . . . Parts Damaged . | . . . . . . . . . . . . . . . . . . . . . . . . Bothacking | -11 -10 -9 -8 -7 -7 -7 -7 -6 -6 -6 -6 -6 -5 -5 -5 -5 -5 -5 -4 -4 -4 -4 -3 ------------ Run | Jun Mat Mat Mat Fac Low Low Dat Pro Fac Low Low Zio Pro Fac Ext Cet Arc Hub Fac Upp Upp Zhi Pro Used RIF Installer . | . . . . . . . . . . . . . . . . . . . . . . . . Robots Hacked . | . . . . . . . . . . . . . . . . . . . . . . . . Non-combat . | . . . . . . . . . . . . . . . . . . . . . . . . Combat . | . . . . . . . . . . . . . . . . . . . . . . . . Robot Hacks Applied . | . . . . . . . . . . . . . . . . . . . . . . . . Relay Couplers Released 1 | . . . . . . . . . . . . . . . . . . 1 . . . . . Machine Destruction 1 | . . . . . . . . . . . . . . . . . . 1 . . . . . Fabnet Peak Effective % . | . . . . . . . . . . . . . . . . . . . . . . . . Robots Rewired 14 | . . . . . . 2 . . . . 2 . . . 10 . . . . . . . . Allies Hacked 2 | . . . . . . . . . . . . . . . 1 1 . . . . . . . Hacks Repelled . | . . . . . . . . . . . . . . . . . . . . . . . . Allies | -11 -10 -9 -8 -7 -7 -7 -7 -6 -6 -6 -6 -6 -5 -5 -5 -5 -5 -5 -4 -4 -4 -4 -3 -------- Run | Jun Mat Mat Mat Fac Low Low Dat Pro Fac Low Low Zio Pro Fac Ext Cet Arc Hub Fac Upp Upp Zhi Pro Total Allies 33 | . . . . . . 2 . 1 . . 2 . . 3 20 5 . . . . . . . Largest Group 9 | . . . . . . 2 2 2 . . 2 . . 3 9 9 6 5 . . . . . Highest-Rated Group 699 | . . . . . . 48 48 128 . . 50 . . 93 395 699 623 480 . . . . . Highest-Rated Ally 159 | . . . . . . 32 32 96 . . 30 . . 31 159 159 143 96 . . . . . Total Orders 1 | . . . . . . . . . . . . . . . . 1 . . . . . . . STAY 1 | . . . . . . . . . . . . . . . . 1 . . . . . . . Ally Attacks 337 | . . . . . . . . 37 . . 7 . . 30 88 77 22 76 . . . . . Total Damage 9382 | . . . . . . . . 1210 . . 171 . . 357 1952 1922 879 2891 . . . . . Kills 68 | . . . . . . . . 8 . . . . . 1 24 15 4 16 . . . . . Allies Corrupted . | . . . . . . . . . . . . . . . . . . . . . . . . Allies Melted . | . . . . . . . . . . . . . . . . . . . . . . . . Intel | -11 -10 -9 -8 -7 -7 -7 -7 -6 -6 -6 -6 -6 -5 -5 -5 -5 -5 -5 -4 -4 -4 -4 -3 ------- Run | Jun Mat Mat Mat Fac Low Low Dat Pro Fac Low Low Zio Pro Fac Ext Cet Arc Hub Fac Upp Upp Zhi Pro Robot Analysis Total 4 | . . . . . . . . . . . . . . . . . . . . . . 4 . Derelict Logs Recovered 14 | . . . . . 2 1 . 3 . 2 2 2 . . . . . . . 1 1 . . Drone Launches . | . . . . . . . . . . . . . . . . . . . . . . . . Drone Recoveries . | . . . . . . . . . . . . . . . . . . . . . . . . Exploration | -11 -10 -9 -8 -7 -7 -7 -7 -6 -6 -6 -6 -6 -5 -5 -5 -5 -5 -5 -4 -4 -4 -4 -3 ------------- Run | Jun Mat Mat Mat Fac Low Low Dat Pro Fac Low Low Zio Pro Fac Ext Cet Arc Hub Fac Upp Upp Zhi Pro Turns Passed 24728 | 145 1471 1982 2046 1164 1492 670 237 1276 1289 998 1609 2807 976 1546 1603 540 229 661 618 507 549 177 136 Spaces Moved 10160 | 89 533 682 694 419 607 250 98 500 431 415 550 1092 394 719 803 268 112 297 230 241 282 205 249 Core 493 | 14 . . . . . . . . . . . . . . . . . . . . 25 205 249 Treads 9059 | . . 682 694 419 607 250 98 500 431 415 550 1092 394 719 803 268 112 297 230 241 257 . . Legs 608 | 75 533 . . . . . . . . . . . . . . . . . . . . . . Wheels . | . . . . . . . . . . . . . . . . . . . . . . . . Hover . | . . . . . . . . . . . . . . . . . . . . . . . . Flight . | . . . . . . . . . . . . . . . . . . . . . . . . Fastest Speed 50 | 50 120 240 236 236 236 238 238 238 240 240 240 240 240 160 160 162 162 162 162 160 50 50 50 Average Speed 208 | 114 244 240 238 236 236 238 238 238 240 240 240 240 240 183 160 162 162 162 162 160 155 62 52 Slowest Speed 1500 | 120 400 240 320 236 238 238 238 242 240 240 240 240 240 240 162 163 163 162 162 162 1500 100 100 Overloaded Moves . | . . . . . . . . . . . . . . . . . . . . . . . . Propulsion Burnouts . | . . . . . . . . . . . . . . . . . . . . . . . . Robots Hopped . | . . . . . . . . . . . . . . . . . . . . . . . . Cave-ins Triggered . | . . . . . . . . . . . . . . . . . . . . . . . . Exploration Rate (%) 50 | 5 68 44 41 8 73 45 69 70 11 64 58 81 57 16 83 87 81 21 9 52 53 62 51 Regions Visited 23 Branch Regions 16 Pre-discovered Areas 6 | . . . . . . 1 1 . . . . . . . . . . . . 1 . 3 . Known Exits Taken 12 | . . . . 1 1 . . . . 1 1 1 1 1 1 1 1 1 1 . . . . Unknown Exits Taken 11 | 1 1 1 1 . . 1 1 1 1 . . . . . . . . . . 1 1 1 . Scrap Searched 20 | . . . . . 2 1 . 2 . 3 2 4 2 . . . . . . 2 . . 2 Spaces Dug 47 | . . . . . . . . . 1 . 27 . . . . . . . . . 19 . . Terrain Destroyed 276 | . . . 10 5 6 4 . 1 4 . 58 . 47 15 10 5 1 11 18 5 76 . . Melee . | . . . . . . . . . . . . . . . . . . . . . . . . Projectile 96 | . . . 10 5 6 4 . 1 4 . . . . 15 10 5 1 7 18 4 6 . . AOE 179 | . . . . . . . . . . . 58 . 47 . . . . 4 . . 70 . . Terrain Rammed . | . . . . . . . . . . . . . . . . . . . . . . . . Walls Destroyed . | . . . . . . . . . . . . . . . . . . . . . . . . Machines Disabled . | . . . . . . . . . . . . . . . . . . . . . . . . Actions | -11 -10 -9 -8 -7 -7 -7 -7 -6 -6 -6 -6 -6 -5 -5 -5 -5 -5 -5 -4 -4 -4 -4 -3 --------- Run | Jun Mat Mat Mat Fac Low Low Dat Pro Fac Low Low Zio Pro Fac Ext Cet Arc Hub Fac Upp Upp Zhi Pro Total 12612 | 115 641 925 893 532 643 289 103 553 647 417 767 1286 420 888 1047 335 147 429 382 330 334 234 255 Wait 1184 | 6 43 100 35 57 3 2 . 22 151 1 126 160 6 105 66 38 23 90 74 62 14 . . Move 10138 | 88 532 681 693 418 606 249 97 499 430 414 549 1091 393 718 802 267 111 297 229 240 281 204 249 Hop . | . . . . . . . . . . . . . . . . . . . . . . . . Pick Up 148 | 7 15 21 15 8 6 . . 4 10 . 3 11 3 12 9 5 1 1 10 4 1 2 . Fast Attach 68 | 7 1 2 3 3 2 2 3 . 7 . 8 5 3 1 3 1 1 5 3 . 1 4 3 Attach 68 | . . 5 9 2 3 3 . 6 2 . 4 . 1 2 5 1 . 4 7 3 8 3 . Detach 10 | . . 1 1 . . . . . . . 4 1 . . . . . . 1 . . 1 1 Swap 99 | . 4 12 14 4 5 . . 6 6 2 9 2 1 8 6 . 2 5 8 4 1 . . Drop 154 | . 7 27 19 5 7 . 3 . 14 . 5 16 5 11 10 5 3 5 5 1 2 2 2 Fire 572 | 7 35 74 95 32 11 18 . 15 27 . 41 . 8 31 36 18 6 19 41 14 26 18 . Melee 1 | . . . . . . . . 1 . . . . . . . . . . . . . . . Ram . | . . . . . . . . . . . . . . . . . . . . . . . . Kick 4 | . 4 . . . . . . . . . . . . . . . . . . . . . . Crush 26 | . . 2 9 3 . . . . . . . . . . 3 . . 3 4 2 . . . Escape Stasis . | . . . . . . . . . . . . . . . . . . . . . . . . Rewire 140 | . . . . . . 15 . . . . 18 . . . 107 . . . . . . . . Trap . | . . . . . . . . . . . . . . . . . . . . . . . . Miscellaneous . | . . . . . . . . . . . . . . . . . . . . . . . . Route ------- -11/Junkyard -10/Materials (discovered 4 exits: *Mat x2 / [*Min x2]) -9/Materials -8/Materials -7/Factory (discovered 2 exits: *Low x2) -7/Lower Caves -7/Lower Caves -7/Data Miner -6/Proximity Caves -6/Factory (discovered 2 exits: Fac / [*Low]) -6/Lower Caves -6/Lower Caves -6/Zion (discovered 2 exits: Dee / *Pro) -5/Proximity Caves -5/Factory (discovered 3 exits: Fac / Upp / *Ext) -5/Extension (discovered 2 exits: *Fac / *Cet) -5/Cetus (discovered 3 exits: *Fac x2 / *Arc) -5/Archives (discovered 3 exits: *Fac / *Hub x2) -5/Hub_04(d) -4/Factory (discovered 2 exits: *Upp x2) -4/Upper Caves -4/Upper Caves (discovered 2 exits: [*Res] / *Zhi) -4/Zhirov -3/Proximity Caves History --------- Turn | Location | Event 3 | -11/Junkyard | Discovered new exit (range 16) 146 | -11/Junkyard | Entered Materials 276 | -10/Materials | Discovered new exit (range 8) 308 | -10/Materials | Build established: Mutant 350 | -10/Materials | Discovered new exit (range 15) 711 | -10/Materials | Discovered new exit (range 14) 730 | -10/Materials | Discovered new exit (range 16) 1617 | -10/Materials | Entered another Materials area 1617 | -9/Materials | Evolved 2 slots: Propulsion x2 2103 | -9/Materials | Destroyed 7 combat bots 2935 | -9/Materials | Discovered new exit (range 16) 3462 | -9/Materials | Build established: Scavenger-Mutant 3599 | -9/Materials | Entered another Materials area 3599 | -8/Materials | Evolved 2 slots: Utility x2 3794 | -8/Materials | Garrison activated, responded to threat 3934 | -8/Materials | Destroyed 7 combat bots 4041 | -8/Materials | System corruption reached 10% 4071 | -8/Materials | Lost 5 parts (1p2n2u) 5098 | -8/Materials | Discovered new exit (range 16) 5162 | -8/Materials | Build established: Mutant 5645 | -8/Materials | Entered Factory 5645 | -7/Factory | Evolved 2 slots: Utility x1, Weapon x1 5996 | -7/Factory | Identified exit to Lower Caves 6024 | -7/Factory | Build established: Scavenger-Gunner 6416 | -7/Factory | Repaired Lgt. Treads 6430 | -7/Factory | Repaired Lgt. Treads 6809 | -7/Factory | Entered Lower Caves 7396 | -7/Lower Caves | Encountered a Warlord checkpoint 7577 | -7/Lower Caves | Build established: Tank 7949 | -7/Lower Caves | Learned 4 Factory zone layouts 8001 | -7/Lower Caves | Identified exit to Lower Caves 8301 | -7/Lower Caves | Entered another Lower Caves area 8460 | -7/Lower Caves | Attracted the attention of an 0b10 outpost 8524 | -7/Lower Caves | Lost 4 parts (1p1u2w) 8558 | -7/Lower Caves | Destroyed 9 combat bots 8831 | -7/Lower Caves | Encountered a Warlord checkpoint 8937 | -7/Lower Caves | Discovered new exit (range 11) 8971 | -7/Lower Caves | Entered Data Miner 8971 | -7/Data Miner | Accompanied by 2 allies 8973 | -7/Data Miner | Discovered new exit (range 6) 9018 | -7/Data Miner | Met Data Miner 9066 | -7/Data Miner | Learned location of Section 7 (-2) 9066 | -7/Data Miner | Acquired the access code to Warlord's prototype stash 9111 | -7/Data Miner | Received God Mode back door access code from Data Miner 9208 | -7/Data Miner | Entered Proximity Caves 9208 | -6/Proximity Caves | Accompanied by 2 allies 9268 | -6/Proximity Caves | Build established: Mutant 9365 | -6/Proximity Caves | Acquired the password to a Derelict Tinkerer's latest research 9394 | -6/Proximity Caves | Found Prototype Special Weapon 9552 | -6/Proximity Caves | Escorted by Enhanced Grunt 9597 | -6/Proximity Caves | Learned 8 Factory zone layouts 9774 | -6/Proximity Caves | Build established: Tank 9987 | -6/Proximity Caves | Caught by Unaware searching for contraband prototypes 10105 | -6/Proximity Caves | Learned Factory terminal intel 10337 | -6/Proximity Caves | Spotted B-75 Beast 10381 | -6/Proximity Caves | Destroyed B-75 Beast 10409 | -6/Proximity Caves | Lost 4 parts (1p1n1u1w) 10410 | -6/Proximity Caves | Discovered new exit (range 15) 10484 | -6/Proximity Caves | System corruption reached 10% 10484 | -6/Proximity Caves | Entered Factory 10484 | -6/Factory | Evolved 2 slots: Utility x2 10485 | -6/Factory | Identified exit to Factory 10486 | -6/Factory | Loaded intel: 26 terminal locations 10632 | -6/Factory | Repaired Adv. Assault Cannon 10656 | -6/Factory | Repaired Adv. Assault Cannon 10867 | -6/Factory | Repaired Broken Lgt. Treads 10895 | -6/Factory | Repaired Lgt. Treads 11640 | -6/Factory | Discovered new exit (range 14) 11773 | -6/Factory | Entered Lower Caves 12042 | -6/Lower Caves | Encountered a Warlord checkpoint 12067 | -6/Lower Caves | Build established: Scavenger-Skirmisher 12404 | -6/Lower Caves | Learned Factory emergency access door positions 12718 | -6/Lower Caves | Discovered new exit (range 10) 12769 | -6/Lower Caves | Identified exit to Lower Caves 12771 | -6/Lower Caves | Entered another Lower Caves area 13077 | -6/Lower Caves | Build established: Scavenger-Mutant 13388 | -6/Lower Caves | Attracted the attention of an 0b10 outpost 13421 | -6/Lower Caves | Identified exit to Zion 13430 | -6/Lower Caves | Destroyed 8 combat bots 13462 | -6/Lower Caves | Learned location of 1 exit from Factory 13533 | -6/Lower Caves | Build established: Mutant 13558 | -6/Lower Caves | Lost 4 parts (1p2n1u) 14380 | -6/Lower Caves | Entered Zion 14478 | -6/Zion | System corruption cleaned by Quarantine Array 14595 | -6/Zion | Identified exit to Deep Caves 14634 | -6/Zion | Acquired unknown access codes intercepted by a Zionite 14689 | -6/Zion | Discovered new exit (range 11) 14698 | -6/Zion | Build established: Scavenger-Mutant 15392 | -6/Zion | Found Prototype Special Weapon 15396 | -6/Zion | Found Prototype Special Weapon 15399 | -6/Zion | Found Prototype Special Weapon 15460 | -6/Zion | Received a visual enhancement algorithm 16055 | -6/Zion | Given the Hacking Drone Bay 16065 | -6/Zion | Found Prototype Device 16212 | -6/Zion | Learned location of 1 exit from Lower Caves 17183 | -6/Zion | Identified exit to Proximity Caves 17187 | -6/Zion | Entered Proximity Caves 17403 | -5/Proximity Caves | Spotted B-75 Beast 18102 | -5/Proximity Caves | Discovered exit to Factory (range 16) 18158 | -5/Proximity Caves | Attracted the attention of an 0b10 base 18163 | -5/Proximity Caves | Entered Factory 18163 | -5/Factory | Evolved 2 slots: Propulsion x2 18164 | -5/Factory | Identified exit to Upper Caves 18165 | -5/Factory | Identified exit to Factory 18456 | -5/Factory | Build established: Derelict-Skirmisher 18690 | -5/Factory | Allied Derelicts emerged from ambush trap array 18943 | -5/Factory | Found Scatter Rocket Array 19004 | -5/Factory | Identified Hacking Drone Bay 19310 | -5/Factory | Build established: Tank 19685 | -5/Factory | Discovered new exit (range 16) 19708 | -5/Factory | Identified exit to Extension 19709 | -5/Factory | Entered Extension 19753 | -5/Extension | Rescued a captive Derelict 19758 | -5/Extension | Rescued a captive Derelict 19832 | -5/Extension | Rescued a captive Derelict 19982 | -5/Extension | P-70 Sage assimilated allied G2-VFN(l) 20240 | -5/Extension | Spotted B-75 Beast 20309 | -5/Extension | System corruption reached 10% 20519 | -5/Extension | Build established: Scavenger-Tank 20693 | -5/Extension | Destroyed B-75 Beast 20714 | -5/Extension | Spotted B-75 Beast 20764 | -5/Extension | Destroyed B-75 Beast 20779 | -5/Extension | Lost 3 parts (1p1n1w) 20809 | -5/Extension | Disrupted transfer network 20863 | -5/Extension | Rescued a captive Derelict 20864 | -5/Extension | Rescued a captive Derelict 20924 | -5/Extension | Rescued a captive Derelict 20925 | -5/Extension | Rescued a captive Derelict 20944 | -5/Extension | Rescued A7 20980 | -5/Extension | Rescued a captive Derelict 20985 | -5/Extension | Rescued a captive Derelict 21276 | -5/Extension | Discovered exit to Factory (range 10) 21278 | -5/Extension | Discovered new exit (range 6) 21310 | -5/Extension | Identified exit to Cetus 21312 | -5/Extension | Entered Cetus 21312 | -5/Cetus | Accompanied by 9 allies (A7) 21317 | -5/Cetus | Acquired a Cetus Manufacturing Module code from A7 21333 | -5/Cetus | Spotted Cetus Guard 21333 | -5/Cetus | Spotted Cetus Guard 21337 | -5/Cetus | Spotted Cetus Guard 21337 | -5/Cetus | Spotted Cetus Guard 21340 | -5/Cetus | Allies destroyed Cetus Guard 21344 | -5/Cetus | Allies destroyed Cetus Guard 21346 | -5/Cetus | Destroyed Cetus Guard 21350 | -5/Cetus | Allies destroyed Cetus Guard 21388 | -5/Cetus | Discovered exit to Factory (range 15) 21524 | -5/Cetus | Escorted A7 to Cetus Mainframe 21577 | -5/Cetus | Started Cetus Manufacturing Module 21597 | -5/Cetus | Discovered new exit (range 15) 21602 | -5/Cetus | Manufactured an Enhanced Grunt 21624 | -5/Cetus | Spotted Cetus Guard 21625 | -5/Cetus | Spotted Cetus Guard 21627 | -5/Cetus | Manufactured an Enhanced Grunt 21632 | -5/Cetus | Allies destroyed Cetus Guard 21632 | -5/Cetus | Spotted Cetus Guard 21640 | -5/Cetus | Allies destroyed Cetus Guard 21640 | -5/Cetus | Spotted Cetus Guard 21644 | -5/Cetus | Allies destroyed Cetus Guard 21650 | -5/Cetus | Allies destroyed Cetus Guard 21652 | -5/Cetus | Manufactured an Enhanced Grunt 21666 | -5/Cetus | Discovered exit to Factory (range 15) 21675 | -5/Cetus | Met Revision 17 21677 | -5/Cetus | Manufactured an Enhanced Grunt 21702 | -5/Cetus | Manufactured an Enhanced Grunt 21821 | -5/Cetus | Identified exit to Archives 21852 | -5/Cetus | Entered Archives 21852 | -5/Archives | Accompanied by 6 allies (A7) 21857 | -5/Archives | Received a hacking code to weaken MAIN.C 21922 | -5/Archives | Unable to access archive contents 21928 | -5/Archives | Discovered exit to Factory (range 15) 21939 | -5/Archives | Unable to access archive contents 21946 | -5/Archives | Discovered new exit (range 16) 21964 | -5/Archives | Discovered new exit (range 16) 22078 | -5/Archives | Identified exit to Hub_04(d) 22081 | -5/Archives | Entered Hub_04(d) 22081 | -5/Hub_04(d) | Accompanied by 5 allies 22174 | -5/Hub_04(d) | Discovered exit to Factory (range 20) 22602 | -5/Hub_04(d) | Incoming assault squad redirected 22681 | -5/Hub_04(d) | First assault squad dispatched 22739 | -5/Hub_04(d) | System corruption reached 30% 22742 | -5/Hub_04(d) | Entered Factory 22742 | -4/Factory | Evolved 2 slots: Utility x2 22760 | -4/Factory | Lost 5 parts (1n4u) 23221 | -4/Factory | Identified exit to Upper Caves 23244 | -4/Factory | Incoming investigation squad redirected 23331 | -4/Factory | Destroyed 7 combat bots 23360 | -4/Factory | Entered Upper Caves 23617 | -4/Upper Caves | Spotted B-86 Titan 23854 | -4/Upper Caves | Discovered new exit (range 9) 23867 | -4/Upper Caves | Entered another Upper Caves area 23896 | -4/Upper Caves | Discovered new exit (range 15) 23971 | -4/Upper Caves | Encountered a Warlord checkpoint 24067 | -4/Upper Caves | Attracted the attention of an 0b10 checkpoint 24147 | -4/Upper Caves | Learned Research interactive machine intel 24303 | -4/Upper Caves | Attracted the attention of an 0b10 outpost 24373 | -4/Upper Caves | System corruption reached 10% 24399 | -4/Upper Caves | Core integrity fell below 50% 24404 | -4/Upper Caves | Released all parts (2) 24406 | -4/Upper Caves | Destroyed 7 combat bots 24408 | -4/Upper Caves | Discovered new exit (range 13) 24413 | -4/Upper Caves | Lost 21 parts (2p6n8u5w) 24416 | -4/Upper Caves | Entered Zhirov 24416 | -4/Zhirov | Discovered new exit (range 3) 24426 | -4/Zhirov | Met Zhirov 24435 | -4/Zhirov | Learned location of Quarantine (-2) 24435 | -4/Zhirov | Learned location of Testing (-3) 24435 | -4/Zhirov | Learned location of Command (-1) 24444 | -4/Zhirov | Zhirov requested help retrieving the SGEMP Prototype 24455 | -4/Zhirov | Found Alien Artifact 24455 | -4/Zhirov | Identified Integrated Reactor 24455 | -4/Zhirov | Installed Integrated Reactor, increased core energy generation (+10) 24465 | -4/Zhirov | Found Alien Artifact 24593 | -4/Zhirov | Entered Proximity Caves 24711 | -3/Proximity Caves | Core integrity fell below 20% 24729 | -3/Proximity Caves | Spotted B-86 Titan 24729 | -3/Proximity Caves | Destroyed by B-86 Titan with Railgun Last Messages --------------- 24656_ Found Unknown Device. 24656_ Found 29 Matter. 24657_ System corrupted: Energy discharge (-31). 24657_ Acquired Humpback. 24658_ Dropped Humpback. 24659_ Acquired 29 matter. 24660_ Acquired Unknown Device. 24660_ Identified Imp. Shield Generator. 24671_ Dropped Phase Shifter. 24672_ AB9XZY71:MP0HV4SBIQMFA 24690_ Lgt. Treads destroyed. 24698_ System corrupted: Exp. Weapon Shielding fused. 24711_ Searching scrap... 24711_ Found Unknown Device. 24711_ Found Unknown Ballistic Gun. 24711_ Found Imp. Melee Analysis Suite. 24711_ Found Unknown Protection. 24711_ Found 20 Matter. 24719_ System corrupted: Energy discharge (-37). 24729_ Penetrated by Slug. Map ----- +----------------------------------------------------+ | ?????????????????????????????????????????????????? | | ?????????????????????????????????????????????????? | | ????#????????????????????????????????????????????? | | ???# ##??????????????????????????????????????????? | | ??# ###????????????????????????????????????????? | | ## ????????????????????????????????????????? | | ????????????????????????????????????????? | | ?????????????????????????????????????????? | | ??????????????????????????????????????????? | | #???????????????????????????????????????????? | | #???????????????????????????????????????????? | | #???????????????????????????????????????????? | | #????????????????????????????????????????????? | | #??????????????????#?????????????????????????? | | #####?????????????? #????????????????????????? | | #?????????????? #???????????????????????? | | ! #?????????????? ####???????????????????? | | ! #??????????????? ???????????????????? | | ### #???????????????# ????????????????????? | | ??# ##??????????????# BB ????????????????????? | | ### ##?????????????# BB?????????????????????? | | ## ##????????????# ?????????????????????? | | ####?????????# ??????????????????????? | | #????????## ??##??????????????????? | | ## #??####### ### ##?????????????????? | | ## #?## ## @## #?????????????????? | | ## #### #?## #?????????????????? | | #### ##?##% ##### ##?????????? | | #?# ##### #?????????? | | ### ## #?????????? | | ## ##### ### #????????? | | ##### #???## ### ##???? ##????????? | | #????# #???## ##?# ##???????#?????????? | | #????# #????####??####??????????????????? | | #?????## ##????????????????????????????????? | | ???????## ###?????????????????????????????????? | | ????????## ##???????????????????????????????????? | | ?????????####????????????????????????????????????? | | ?????????????????????????????????????????????????? | | ?????????????????????????????????????????????????? | | ?????????????????????????????????????????????????? | | ?????????????????????????????????????????????????? | | ?????????????????????????????????????????????????? | | ?????????????????????????????????????????????????? | | ?????????????????????????????????????????????????? | | ?????????????????????????????????????????????????? | | ?????????????????????????????????????????????????? | | ?????????????????????????????????????????????????? | | ?????????????????????????????????????????????????? | | ?????????????????????????????????????????????????? | +----------------------------------------------------+ Best States ------------- Heat Dissipation 70 Energy Generation 21 Energy Capacity 325 Matter Stores 389 Matter Capacity 500 Sight Range 16 Robot Scan Range 16 Terrain Scan Range 20 Terrain Scan Density 335 Jamming Range 14 Armor Coverage 1200 Weapon Shielding 90 Phase Shifting 5 Evasion (%) 55 Targeting Accuracy 6 Recoil Reduction 6 Offensive Hacking 24 Item Schematics ----------------- Huge Storage Unit | -10/Materials | Hacked Imp. Sensor Array | -7/Factory | Hacked Combat Drone Bay | -7/Data Miner | Free Lgt. Regenerative Plating | -7/Data Miner | Free Cld. Cesium-ion Thruster | -7/Data Miner | Free Thermal Defense Suite | -7/Data Miner | Free Gyrokinetic Inverter | -7/Data Miner | Free Scatter Rocket Array | -7/Data Miner | Free Adv. Shield Generator | -7/Data Miner | Free Adv. Plasma Cannon | -7/Data Miner | Free Lgt. Fission Core | -7/Data Miner | Free Adv. Signal Interpreter | -6/Factory | Scanalyzed Robot Schematics ------------------ H-55 Commando | -7/Data Miner | Free X-67 Chaingunner | -7/Data Miner | Free O-24 Administrator | -7/Data Miner | Free B-48 Gladiator | -7/Data Miner | Free H-66 Slayer | -7/Data Miner | Free Fabricated ------------ Nothing Alien Tech Used ----------------- Integrated Reactor Achievements -------------- Main Advantage Challenges ------------ None Game ------ Seed CooledEnhancedArmor Manual? 0 Play Time 02:13:52 Cumulative 122.0 hours Start 2023.05.31 @ 19:34:31 End 2023.06.01 @ 18:33:16 Sessions 3 Manual Loads 0 Difficulty Rogue Special Mode None Game No. 177 Rogue 177 Adventurer 0 Explorer 0 Win Type - Total 1 Types 1/0/0/0/0/0/0/0/0 Lore% 61 Gallery% 65 Achievement% 51 Wizard Run 0 Options --------- ASCII 0 Keyboard 0 Movement Numpad Keybinds 0 Fullscreen 1 Font 18/SmallcapsGlow Map View 76x50 Tactical HUD 1 Map Filters NONE Filters NONE Steam 1 RUN: 81b6f486-5759-40a3-b2ee-4dd547c5d2a1